[Event "Vastgota Open 2023"]
[Site "Skara stadshotell, Jarnvagsgatan 5, Skara, Sweden"]
[Date "2023.02.19"]
[Round "8.5"]
[White "Andersson, Fredrik"]
[Black "Cramling, Pia"]
[Result "1/2-1/2"]
[TimeControl "15 minutes + 5 seconds per move from move one (Round 1 - 2) / 30 minutes + 10 seconds per move from move one (Round 3 - 9)"]
[WhiteTitle "FM"]
[BlackTitle "GM"]
[WhiteFideId "1706187"]
[BlackFideId "1700030"]
[WhiteElo "2194"]
[BlackElo "2429"]

1. e4 {[%clk 00:30:19]} {[%emt 00:00:20]} c5 {[%clk 00:30:15]} {[%emt
00:00:05]} 2. Nf3 {[%clk 00:30:26]} {[%emt 00:00:03]} Nc6 {[%clk 00:30:10]}
{[%emt 00:00:15]} 3. Bb5 {[%clk 00:30:25]} {[%emt 00:00:11]} g6 {[%clk
00:30:05]} {[%emt 00:00:14]} 4. Bxc6 {[%clk 00:30:31]} {[%emt 00:00:05]} bxc6
{[%clk 00:30:08]} {[%emt 00:00:06]} 5. O-O {[%clk 00:30:30]} {[%emt 00:00:12]}
Bg7 {[%clk 00:30:07]} {[%emt 00:00:11]} 6. Re1 {[%clk 00:30:06]} {[%emt
00:00:33]} Nf6 {[%clk 00:28:55]} {[%emt 00:01:23]} 7. Nc3 {[%clk 00:29:14]}
{[%emt 00:01:02]} O-O {[%clk 00:28:38]} {[%emt 00:00:26]} 8. e5 {[%clk
00:28:26]} {[%emt 00:01:00]} Nd5 {[%clk 00:28:42]} {[%emt 00:00:05]} 9. Ne4
{[%clk 00:28:21]} {[%emt 00:00:15]} d6 {[%clk 00:28:43]} {[%emt 00:00:08]} 10.
exd6 {[%clk 00:27:21]} {[%emt 00:01:11]} exd6 {[%clk 00:28:52]} {[%emt
00:00:01]} 11. d3 {[%clk 00:27:26]} {[%emt 00:00:05]} h6 {[%clk 00:24:05]}
{[%emt 00:04:56]} 12. c4 {[%clk 00:25:42]} {[%emt 00:01:54]} Ne7 {[%clk
00:19:41]} {[%emt 00:04:34]} 13. d4 {[%clk 00:24:03]} {[%emt 00:01:49]} cxd4
{[%clk 00:18:53]} {[%emt 00:00:57]} 14. Nxd4 {[%clk 00:24:09]} {[%emt
00:00:04]} d5 {[%clk 00:15:09]} {[%emt 00:03:54]} 15. cxd5 {[%clk 00:23:20]}
{[%emt 00:01:00]} Qxd5 {[%clk 00:14:17]} {[%emt 00:01:01]} 16. Nc3 {[%clk
00:23:02]} {[%emt 00:00:29]} Qxd4 {[%clk 00:13:50]} {[%emt 00:00:37]} 17. Qxd4
Bxd4 {[%clk 00:13:58]} 18. Rxe7 {[%clk 00:23:04]} {[%emt 00:00:06]} Kg7 {[%clk
00:13:30]} {[%emt 00:00:37]} 19. Bf4 {[%clk 00:22:29]} {[%emt 00:00:47]} Bf5
{[%clk 00:10:56]} {[%emt 00:02:43]} 20. Rae1 {[%clk 00:21:27]} {[%emt
00:01:12]} Rfd8 {[%clk 00:10:42]} {[%emt 00:00:24]} 21. h3 {[%clk 00:19:23]}
{[%emt 00:02:16]} g5 {[%clk 00:09:24]} {[%emt 00:01:27]} 22. Bc7 {[%clk
00:16:07]} {[%emt 00:03:26]} Rd7 {[%clk 00:09:19]} {[%emt 00:00:14]} 23. Rxd7
{[%clk 00:15:58]} {[%emt 00:00:20]} Bxd7 {[%clk 00:09:28]} {[%emt 00:00:01]} 24.
Rd1 {[%clk 00:16:07]} Bxc3 {[%clk 00:09:13]} {[%emt 00:00:26]} 25. bxc3 {[%clk
00:16:08]} {[%emt 00:00:10]} Be6 {[%clk 00:09:21]} {[%emt 00:00:01]} 26. a4
{[%clk 00:15:25]} {[%emt 00:00:53]} Rc8 {[%clk 00:09:10]} {[%emt 00:00:20]} 27.
Be5+ {[%clk 00:15:14]} {[%emt 00:00:22]} f6 {[%clk 00:09:01]} {[%emt 00:00:19]}
28. Rd6 {[%clk 00:15:11]} {[%emt 00:00:14]} Kf7 {[%clk 00:09:09]} {[%emt
00:00:01]} 29. Bd4 {[%clk 00:15:01]} {[%emt 00:00:20]} 1/2-1/2

[Event "Vastgota Open 2023"]
[Site "Skara stadshotell, Jarnvagsgatan 5, Skara, Sweden"]
[Date "2023.02.19"]
[Round "8.6"]
[White "Golubka, Petro"]
[Black "Eklund, Lars-Goran"]
[Result "1-0"]
[TimeControl "15 minutes + 5 seconds per move from move one (Round 1 - 2) / 30 minutes + 10 seconds per move from move one (Round 3 - 9)"]
[WhiteTitle "GM"]
[BlackTitle "FM"]
[WhiteFideId "14114224"]
[BlackFideId "1701010"]
[WhiteElo "2407"]
[BlackElo "2196"]

1. e4 {[%clk 00:28:14]} {[%emt 00:02:05]} Nc6 {[%clk 00:30:10]} {[%emt
00:00:11]} 2. Nf3 {[%clk 00:27:47]} {[%emt 00:00:36]} d6 {[%clk 00:30:17]}
{[%emt 00:00:04]} 3. d4 {[%clk 00:27:28]} {[%emt 00:00:30]} Nf6 {[%clk
00:30:22]} {[%emt 00:00:04]} 4. Nc3 {[%clk 00:26:57]} {[%emt 00:00:41]} Bg4
{[%clk 00:30:26]} {[%emt 00:00:06]} 5. Be3 {[%clk 00:26:48]} {[%emt 00:00:19]}
e5 {[%clk 00:30:19]} {[%emt 00:00:17]} 6. Bb5 {[%clk 00:26:45]} {[%emt
00:00:13]} exd4 {[%clk 00:28:38]} {[%emt 00:01:52]} 7. Qxd4 {[%clk 00:26:41]}
{[%emt 00:00:14]} Be7 {[%clk 00:22:48]} {[%emt 00:05:59]} 8. Bxc6+ {[%clk
00:25:53]} {[%emt 00:00:59]} bxc6 {[%clk 00:22:56]} {[%emt 00:00:02]} 9. Qc4
{[%clk 00:25:38]} {[%emt 00:00:25]} c5 {[%clk 00:20:23]} {[%emt 00:02:43]} 10.
e5 {[%clk 00:24:58]} {[%emt 00:00:49]} Be6 {[%clk 00:20:08]} {[%emt 00:00:25]}
11. Qa4+ {[%clk 00:24:48]} {[%emt 00:00:18]} Nd7 {[%clk 00:19:27]} {[%emt
00:00:53]} 12. Rd1 {[%clk 00:23:40]} {[%emt 00:01:18]} O-O {[%clk 00:17:57]}
{[%emt 00:01:41]} 13. b3 {[%clk 00:22:53]} {[%emt 00:00:56]} Qb8 {[%clk
00:16:04]} {[%emt 00:02:02]} 14. O-O {[%clk 00:21:09]} {[%emt 00:01:55]} Qb4
{[%clk 00:10:54]} {[%emt 00:05:20]} 15. Nd5 {[%clk 00:19:20]} {[%emt 00:01:59]}
Bxd5 {[%clk 00:10:53]} {[%emt 00:00:11]} 16. Qxd7 {[%clk 00:19:10]} {[%emt
00:00:20]} Bxf3 {[%clk 00:10:45]} {[%emt 00:00:18]} 17. gxf3 {[%clk 00:19:07]}
{[%emt 00:00:11]} Rfe8 {[%clk 00:08:15]} {[%emt 00:02:42]} 18. Qxc7 {[%clk
00:17:38]} {[%emt 00:01:39]} Rac8 {[%clk 00:08:07]} {[%emt 00:00:17]} 19. Qxa7
{[%clk 00:17:21]} {[%emt 00:00:28]} dxe5 {[%clk 00:07:58]} {[%emt 00:00:19]} 20.
c4 {[%clk 00:16:31]} {[%emt 00:01:00]} Ra8 {[%clk 00:05:50]} {[%emt 00:02:18]}
21. Qd7 {[%clk 00:16:31]} {[%emt 00:00:09]} Qb6 {[%clk 00:05:36]} {[%emt
00:00:26]} 22. Rd2 {[%clk 00:15:28]} {[%emt 00:01:13]} Qf6 {[%clk 00:05:25]}
{[%emt 00:00:20]} 23. Qg4 {[%clk 00:15:05]} {[%emt 00:00:30]} g6 {[%clk
00:04:39]} {[%emt 00:00:59]} 24. Rfd1 {[%clk 00:14:28]} {[%emt 00:00:47]} Qc6
{[%clk 00:03:50]} {[%emt 00:00:59]} 25. Qe4 {[%clk 00:14:16]} {[%emt 00:00:21]}
Qe6 {[%clk 00:03:49]} {[%emt 00:00:12]} 26. Kg2 {[%clk 00:12:35]} {[%emt
00:01:51]} f5 {[%clk 00:00:45]} {[%emt 00:03:14]} 27. Qd5 {[%clk 00:12:29]}
{[%emt 00:00:16]} Qxd5 {[%clk 00:00:54]} {[%emt 00:00:01]} 28. Rxd5 {[%clk
00:12:27]} {[%emt 00:00:11]} f4 {[%clk 00:00:26]} {[%emt 00:00:39]} 29. Bxc5
{[%clk 00:11:38]} {[%emt 00:00:59]} 1-0

[Event "Vastgota Open 2023"]
[Site "Skara stadshotell, Jarnvagsgatan 5, Skara, Sweden"]
[Date "2023.02.19"]
[Round "8.7"]
[White "Johansson, Ulf"]
[Black "Kockum, Anton Frisk"]
[Result "0-1"]
[TimeControl "15 minutes + 5 seconds per move from move one (Round 1 - 2) / 30 minutes + 10 seconds per move from move one (Round 3 - 9)"]
[BlackTitle "FM"]
[WhiteFideId "1701380"]
[BlackFideId "1709143"]
[WhiteElo "2155"]
[BlackElo "2367"]

1. Nf3 {[%clk 00:30:18]} g6 {[%clk 00:30:19]} {[%emt 00:00:02]} 2. g3 {[%clk
00:30:22]} {[%emt 00:00:06]} Bg7 {[%clk 00:30:28]} {[%emt 00:00:02]} 3. d4
{[%clk 00:30:30]} {[%emt 00:00:01]} f5 {[%clk 00:30:36]} {[%emt 00:00:02]} 4.
Bg2 {[%clk 00:30:16]} {[%emt 00:00:24]} Nf6 {[%clk 00:30:45]} {[%emt 00:00:02]}
5. c4 {[%clk 00:29:06]} {[%emt 00:01:20]} d6 {[%clk 00:30:54]} {[%emt
00:00:01]} 6. Nc3 {[%clk 00:29:12]} {[%emt 00:00:03]} O-O {[%clk 00:30:46]}
{[%emt 00:00:18]} 7. O-O {[%clk 00:28:51]} {[%emt 00:00:31]} Nc6 {[%clk
00:30:55]} {[%emt 00:00:02]} 8. d5 {[%clk 00:28:37]} {[%emt 00:00:23]} Ne5
{[%clk 00:31:04]} {[%emt 00:00:02]} 9. Nxe5 {[%clk 00:25:55]} {[%emt 00:02:52]}
dxe5 {[%clk 00:31:12]} {[%emt 00:00:01]} 10. b3 {[%clk 00:25:38]} {[%emt
00:00:27]} a6 {[%clk 00:29:09]} {[%emt 00:02:13]} 11. Bb2 {[%clk 00:25:42]}
{[%emt 00:00:06]} g5 {[%clk 00:29:06]} {[%emt 00:00:13]} 12. Qd2 {[%clk
00:24:30]} {[%emt 00:01:22]} h6 {[%clk 00:27:59]} {[%emt 00:01:16]} 13. Rad1
{[%clk 00:23:47]} {[%emt 00:00:54]} Qe8 {[%clk 00:27:44]} {[%emt 00:00:26]} 14.
c5 {[%clk 00:22:52]} {[%emt 00:01:04]} e6 {[%clk 00:13:00]} {[%emt 00:14:54]}
15. c6 {[%clk 00:17:42]} {[%emt 00:05:20]} bxc6 {[%clk 00:12:34]} {[%emt
00:00:37]} 16. d6 {[%clk 00:17:33]} {[%emt 00:00:19]} e4 {[%clk 00:11:45]}
{[%emt 00:00:59]} 17. Na4 {[%clk 00:17:01]} {[%emt 00:00:42]} Nd5 {[%clk
00:10:14]} {[%emt 00:01:40]} 18. dxc7 {[%clk 00:17:04]} {[%emt 00:00:07]} Rf7
{[%clk 00:08:52]} {[%emt 00:01:32]} 19. f3 {[%clk 00:14:08]} {[%emt 00:03:06]}
e3 {[%clk 00:08:43]} {[%emt 00:00:19]} 20. Qd3 {[%clk 00:14:06]} {[%emt
00:00:12]} Bxb2 {[%clk 00:07:43]} {[%emt 00:01:10]} 21. Nxb2 {[%clk 00:14:14]}
{[%emt 00:00:02]} Rxc7 {[%clk 00:07:23]} {[%emt 00:00:30]} 22. Nc4 {[%clk
00:13:37]} {[%emt 00:00:47]} f4 {[%clk 00:06:25]} {[%emt 00:01:08]} 23. Ne5
{[%clk 00:10:36]} {[%emt 00:03:11]} a5 {[%clk 00:05:33]} {[%emt 00:01:02]} 24.
Kh1 {[%clk 00:10:07]} {[%emt 00:00:39]} Ba6 {[%clk 00:05:34]} {[%emt 00:00:10]}
25. Qc2 {[%clk 00:09:46]} {[%emt 00:00:30]} Nb4 {[%clk 00:03:48]} {[%emt
00:01:56]} 26. Qb2 {[%clk 00:09:26]} {[%emt 00:00:31]} Rd8 {[%clk 00:03:56]}
{[%emt 00:00:01]} 27. a3 {[%clk 00:09:13]} {[%emt 00:00:23]} Rxd1 {[%clk
00:03:55]} {[%emt 00:00:11]} 28. Rxd1 {[%clk 00:09:22]} {[%emt 00:00:02]} Nd5
{[%clk 00:04:03]} {[%emt 00:00:01]} 29. Qc2 {[%clk 00:08:50]} {[%emt 00:00:42]}
c5 {[%clk 00:03:56]} {[%emt 00:00:18]} 30. gxf4 {[%clk 00:08:34]} {[%emt
00:00:25]} Nxf4 {[%clk 00:03:25]} {[%emt 00:00:42]} 31. Bf1 {[%clk 00:08:41]}
{[%emt 00:00:02]} Rc8 {[%clk 00:02:47]} {[%emt 00:00:48]} 32. Rd7 {[%clk
00:06:58]} {[%emt 00:01:53]} Qxd7 {[%clk 00:00:53]} {[%emt 00:02:05]} 33. Nxd7
{[%clk 00:07:05]} {[%emt 00:00:02]} Rd8 {[%clk 00:01:02]} 34. Nxc5 {[%clk
00:06:48]} {[%emt 00:00:28]} Rd2 {[%clk 00:01:10]} {[%emt 00:00:02]} 35. Qe4
{[%clk 00:06:30]} {[%emt 00:00:28]} Rd1 {[%clk 00:01:19]} {[%emt 00:00:02]} 36.
h4 {[%clk 00:02:08]} {[%emt 00:04:31]} Rxf1+ {[%clk 00:01:25]} {[%emt
00:00:04]} 37. Kh2 {[%clk 00:02:17]} Rf2+ {[%clk 00:01:24]} {[%emt 00:00:12]}
38. Kh1 {[%clk 00:02:27]} Bxe2 {[%clk 00:00:53]} {[%emt 00:00:41]} 39. Qxe3
{[%clk 00:02:20]} {[%emt 00:00:16]} Bxf3+ {[%clk 00:00:57]} {[%emt 00:00:06]}
40. Kg1 {[%clk 00:02:26]} {[%emt 00:00:04]} Nh3# {[%emt 00:00:02]} 0-1

[Event "Vastgota Open 2023"]
[Site "Skara stadshotell, Jarnvagsgatan 5, Skara, Sweden"]
[Date "2023.02.19"]
[Round "8.8"]
[White "Silseth, Simon"]
[Black "Lind, Jan-Olov"]
[Result "1-0"]
[TimeControl "15 minutes + 5 seconds per move from move one (Round 1 - 2) / 30 minutes + 10 seconds per move from move one (Round 3 - 9)"]
[WhiteTitle "FM"]
[WhiteFideId "1702440"]
[BlackFideId "1701193"]
[WhiteElo "2258"]
[BlackElo "2096"]

1. d4 {[%clk 00:30:17]} {[%emt 00:00:01]} Nf6 {[%clk 00:30:11]} {[%emt
00:00:10]} 2. c4 {[%clk 00:30:23]} {[%emt 00:00:03]} g6 {[%clk 00:30:15]}
{[%emt 00:00:07]} 3. Nc3 {[%clk 00:30:24]} {[%emt 00:00:08]} Bg7 {[%clk
00:30:23]} {[%emt 00:00:02]} 4. e4 {[%clk 00:30:29]} {[%emt 00:00:05]} d6
{[%clk 00:30:31]} {[%emt 00:00:02]} 5. Nf3 {[%clk 00:30:20]} {[%emt 00:00:19]}
O-O {[%clk 00:30:29]} {[%emt 00:00:12]} 6. Be2 {[%clk 00:30:12]} {[%emt
00:00:18]} e5 {[%clk 00:30:33]} {[%emt 00:00:07]} 7. d5 {[%clk 00:30:17]}
{[%emt 00:00:05]} a5 {[%clk 00:30:10]} {[%emt 00:00:32]} 8. Bg5 {[%clk
00:30:21]} {[%emt 00:00:06]} Na6 {[%clk 00:29:56]} {[%emt 00:00:25]} 9. Nd2
{[%clk 00:30:02]} {[%emt 00:00:28]} Nc5 {[%clk 00:29:03]} {[%emt 00:01:03]} 10.
Nb3 {[%clk 00:29:20]} {[%emt 00:00:52]} h6 {[%clk 00:28:00]} {[%emt 00:01:14]}
11. Nxc5 {[%clk 00:29:20]} {[%emt 00:00:10]} hxg5 {[%clk 00:28:05]} {[%emt
00:00:05]} 12. Nd3 {[%clk 00:29:14]} {[%emt 00:00:15]} c6 {[%clk 00:22:41]}
{[%emt 00:05:35]} 13. Qd2 {[%clk 00:28:47]} {[%emt 00:00:37]} Nh7 {[%clk
00:20:03]} {[%emt 00:02:48]} 14. O-O-O {[%clk 00:27:08]} {[%emt 00:01:48]} g4
{[%clk 00:16:45]} {[%emt 00:03:28]} 15. Kb1 {[%clk 00:26:01]} {[%emt 00:01:17]}
Bf6 {[%clk 00:15:53]} {[%emt 00:01:03]} 16. f3 {[%clk 00:24:06]} {[%emt
00:02:05]} Bg5 {[%clk 00:15:08]} {[%emt 00:00:55]} 17. Qe1 {[%clk 00:23:09]}
{[%emt 00:01:06]} gxf3 {[%clk 00:13:47]} {[%emt 00:01:32]} 18. Bxf3 {[%clk
00:23:16]} {[%emt 00:00:02]} Qb6 {[%clk 00:12:24]} {[%emt 00:01:33]} 19. h4
{[%clk 00:23:04]} {[%emt 00:00:22]} Be3 {[%clk 00:11:10]} {[%emt 00:01:25]} 20.
c5 {[%clk 00:21:46]} {[%emt 00:01:27]} Bxc5 {[%clk 00:10:50]} {[%emt 00:00:31]}
21. Na4 {[%clk 00:21:52]} {[%emt 00:00:03]} Qb5 {[%clk 00:08:29]} {[%emt
00:02:32]} 22. Naxc5 {[%clk 00:20:38]} {[%emt 00:01:24]} dxc5 {[%clk 00:08:35]}
{[%emt 00:00:03]} 23. Nxe5 {[%clk 00:20:23]} {[%emt 00:00:26]} cxd5 {[%clk
00:08:07]} {[%emt 00:00:38]} 24. exd5 {[%clk 00:20:30]} {[%emt 00:00:02]} Bf5+
{[%clk 00:07:49]} {[%emt 00:00:29]} 25. Ka1 {[%clk 00:20:37]} {[%emt 00:00:03]}
Rfe8 {[%clk 00:06:36]} {[%emt 00:01:23]} 26. Qg3 {[%clk 00:19:47]} {[%emt
00:00:59]} c4 {[%clk 00:05:05]} {[%emt 00:01:42]} 27. Rc1 {[%clk 00:13:49]}
{[%emt 00:06:08]} Rac8 {[%clk 00:02:53]} {[%emt 00:02:22]} 28. h5 {[%clk
00:13:38]} {[%emt 00:00:21]} g5 {[%clk 00:02:45]} {[%emt 00:00:19]} 29. h6
{[%clk 00:13:02]} {[%emt 00:00:46]} c3 {[%clk 00:02:22]} {[%emt 00:00:33]} 30.
bxc3 {[%clk 00:12:53]} {[%emt 00:00:18]} a4 {[%clk 00:02:15]} {[%emt 00:00:17]}
31. Bh5 {[%clk 00:06:16]} {[%emt 00:06:46]} Re7 {[%clk 00:01:06]} {[%emt
00:01:20]} 32. Bxf7+ {[%clk 00:06:07]} {[%emt 00:00:20]} Rxf7 {[%clk 00:01:05]}
{[%emt 00:00:10]} 33. Nxf7 {[%clk 00:06:15]} {[%emt 00:00:02]} Kxf7 {[%clk
00:01:07]} {[%emt 00:00:08]} 34. Qe5 {[%clk 00:05:55]} {[%emt 00:00:29]} Kg6
{[%clk 00:01:01]} {[%emt 00:00:17]} 35. Qg7# {[%emt 00:00:05]} 1-0

[Event "Vastgota Open 2023"]
[Site "Skara stadshotell, Jarnvagsgatan 5, Skara, Sweden"]
[Date "2023.02.19"]
[Round "8.9"]
[White "Wengholm, Anders"]
[Black "Ernst, Thomas"]
[Result "0-1"]
[TimeControl "15 minutes + 5 seconds per move from move one (Round 1 - 2) / 30 minutes + 10 seconds per move from move one (Round 3 - 9)"]
[BlackTitle "GM"]
[WhiteFideId "1704818"]
[BlackFideId "1700065"]
[WhiteElo "2104"]
[BlackElo "2315"]

1. Nf3 {[%clk 00:30:19]} {[%emt 00:01:00]} c5 {[%clk 00:30:16]} {[%emt
00:00:04]} 2. c4 {[%clk 00:30:27]} {[%emt 00:00:02]} Nf6 {[%clk 00:30:21]}
{[%emt 00:00:05]} 3. Nc3 {[%clk 00:30:22]} {[%emt 00:00:14]} d5 {[%clk
00:30:27]} {[%emt 00:00:05]} 4. cxd5 {[%clk 00:30:27]} {[%emt 00:00:05]} Nxd5
{[%clk 00:30:35]} {[%emt 00:00:02]} 5. d4 {[%clk 00:30:31]} {[%emt 00:00:06]}
Nxc3 {[%clk 00:30:36]} {[%emt 00:00:09]} 6. bxc3 {[%clk 00:30:39]} {[%emt
00:00:01]} g6 {[%clk 00:30:40]} {[%emt 00:00:07]} 7. e3 {[%clk 00:28:44]}
{[%emt 00:02:05]} Bg7 {[%clk 00:30:44]} {[%emt 00:00:05]} 8. Bb5+ {[%clk
00:28:51]} {[%emt 00:00:03]} Nc6 {[%clk 00:29:32]} {[%emt 00:01:23]} 9. O-O
{[%clk 00:28:41]} {[%emt 00:00:20]} O-O {[%clk 00:29:26]} {[%emt 00:00:15]} 10.
Ba3 {[%clk 00:28:05]} {[%emt 00:00:47]} cxd4 {[%clk 00:27:43]} {[%emt
00:01:53]} 11. cxd4 {[%clk 00:27:59]} {[%emt 00:00:16]} Na5 {[%clk 00:27:21]}
{[%emt 00:00:30]} 12. Bb4 {[%clk 00:23:42]} {[%emt 00:04:29]} a6 {[%clk
00:26:48]} {[%emt 00:00:42]} 13. Be2 {[%clk 00:23:41]} {[%emt 00:00:12]} Nc6
{[%clk 00:25:34]} {[%emt 00:01:25]} 14. Bc5 {[%clk 00:23:23]} {[%emt 00:00:28]}
b6 {[%clk 00:25:06]} {[%emt 00:00:37]} 15. Ba3 {[%clk 00:23:30]} {[%emt
00:00:03]} Be6 {[%clk 00:23:53]} {[%emt 00:01:22]} 16. Ng5 {[%clk 00:19:41]}
{[%emt 00:04:00]} Bd7 {[%clk 00:23:54]} {[%emt 00:00:08]} 17. Rc1 {[%clk
00:18:43]} {[%emt 00:01:09]} Re8 {[%clk 00:22:23]} {[%emt 00:01:41]} 18. Bc4
{[%clk 00:15:16]} {[%emt 00:03:37]} e6 {[%clk 00:22:15]} {[%emt 00:00:18]} 19.
Ne4 {[%clk 00:15:24]} {[%emt 00:00:03]} Qh4 {[%clk 00:20:35]} {[%emt 00:01:48]}
20. f4 {[%clk 00:11:35]} {[%emt 00:04:00]} Na5 {[%clk 00:18:45]} {[%emt
00:02:00]} 21. Be2 {[%clk 00:11:18]} {[%emt 00:00:27]} Bc6 {[%clk 00:17:50]}
{[%emt 00:01:03]} 22. Ng5 {[%clk 00:08:54]} {[%emt 00:02:35]} Bf6 {[%clk
00:17:41]} {[%emt 00:00:20]} 23. g3 {[%clk 00:08:15]} {[%emt 00:00:49]} Qh6
{[%clk 00:17:46]} {[%emt 00:00:04]} 24. Bf3 {[%clk 00:08:17]} {[%emt 00:00:09]}
Bd5 {[%clk 00:16:16]} {[%emt 00:01:40]} 25. Ne4 {[%clk 00:06:23]} {[%emt
00:02:04]} Bxe4 {[%clk 00:14:18]} {[%emt 00:02:08]} 26. Bxe4 {[%clk 00:06:32]}
{[%emt 00:00:02]} Rac8 {[%clk 00:14:22]} {[%emt 00:00:05]} 27. Qa4 {[%clk
00:06:27]} {[%emt 00:00:15]} Rcd8 {[%clk 00:13:35]} {[%emt 00:00:58]} 28. Rc7
{[%clk 00:06:11]} {[%emt 00:00:25]} Qh5 {[%clk 00:13:26]} {[%emt 00:00:19]} 29.
Bf3 {[%clk 00:02:07]} {[%emt 00:04:14]} Qf5 {[%clk 00:12:57]} {[%emt 00:00:38]}
30. Qb4 {[%clk 00:01:10]} {[%emt 00:01:08]} Qd3 {[%clk 00:12:30]} {[%emt
00:00:36]} 31. Rc3 {[%clk 00:00:59]} {[%emt 00:00:22]} Qb5 {[%clk 00:12:15]}
{[%emt 00:00:25]} 32. Qxb5 axb5 {[%clk 00:12:23]} 33. Rb1 {[%clk 00:00:51]}
{[%emt 00:00:02]} Rxd4 {[%clk 00:12:16]} {[%emt 00:00:17]} 34. Rc2 {[%clk
00:00:16]} {[%emt 00:00:45]} Rd3 {[%clk 00:08:26]} {[%emt 00:03:59]} 35. Bc1
{[%clk 00:00:24]} {[%emt 00:00:02]} Nc4 {[%clk 00:08:24]} {[%emt 00:00:12]} 36.
Rxb5 {[%clk 00:00:15]} {[%emt 00:00:20]} Nxe3 {[%clk 00:08:20]} {[%emt
00:00:14]} 37. Bxe3 {[%clk 00:00:16]} {[%emt 00:00:08]} Rxe3 {[%clk 00:08:27]}
{[%emt 00:00:03]} 38. Kg2 {[%clk 00:00:13]} {[%emt 00:00:14]} Bd4 {[%clk
00:08:11]} {[%emt 00:00:24]} 39. Rc4 {[%emt 00:00:14]} 0-1

[Event "Vastgota Open 2023"]
[Site "Skara stadshotell, Jarnvagsgatan 5, Skara, Sweden"]
[Date "2023.02.19"]
[Round "8.10"]
[White "Bellon Lopez, Juan Manuel"]
[Black "Danielsson, Fredrik"]
[Result "1/2-1/2"]
[TimeControl "15 minutes + 5 seconds per move from move one (Round 1 - 2) / 30 minutes + 10 seconds per move from move one (Round 3 - 9)"]
[WhiteTitle "GM"]
[WhiteFideId "2200031"]
[BlackFideId "1729993"]
[WhiteElo "2318"]
[BlackElo "2071"]

1. d4 {[%clk 00:30:18]} {[%emt 00:00:02]} Nf6 {[%clk 00:30:19]} {[%emt
00:00:02]} 2. Bf4 {[%clk 00:30:27]} c5 {[%clk 00:30:14]} {[%emt 00:00:16]} 3.
d5 {[%clk 00:29:55]} {[%emt 00:00:41]} d6 {[%clk 00:30:21]} {[%emt 00:00:03]} 4.
Nc3 {[%clk 00:29:57]} {[%emt 00:00:09]} e5 {[%clk 00:30:05]} {[%emt 00:00:25]}
5. dxe6 {[%emt 00:00:34]} Bxe6 {[%clk 00:29:55]} {[%emt 00:00:13]} 6. e4 {[%clk
00:29:35]} {[%emt 00:00:15]} Nc6 {[%clk 00:27:58]} {[%emt 00:02:07]} 7. Nf3
{[%clk 00:29:43]} {[%emt 00:00:02]} Be7 {[%clk 00:27:50]} {[%emt 00:00:19]} 8.
h3 {[%clk 00:29:16]} {[%emt 00:00:36]} O-O {[%clk 00:27:26]} {[%emt 00:00:35]}
9. Be2 {[%clk 00:29:14]} {[%emt 00:00:10]} d5 {[%clk 00:25:07]} {[%emt
00:02:30]} 10. exd5 {[%emt 00:00:36]} Nxd5 {[%clk 00:25:05]} {[%emt 00:00:07]}
11. Nxd5 {[%clk 00:29:00]} {[%emt 00:00:04]} Qxd5 {[%clk 00:24:19]} {[%emt
00:00:55]} 12. Qxd5 {[%clk 00:27:51]} {[%emt 00:01:20]} Bxd5 {[%clk 00:24:27]}
{[%emt 00:00:02]} 13. O-O-O {[%clk 00:27:26]} {[%emt 00:00:34]} Rad8 {[%clk
00:23:01]} {[%emt 00:01:36]} 14. Rhe1 {[%clk 00:25:59]} {[%emt 00:01:36]} Bf6
{[%clk 00:21:02]} {[%emt 00:02:10]} 15. a3 {[%clk 00:22:30]} {[%emt 00:03:39]}
h6 {[%clk 00:20:11]} {[%emt 00:01:02]} 16. Rd2 {[%clk 00:20:19]} {[%emt
00:02:20]} g5 {[%clk 00:15:52]} {[%emt 00:04:29]} 17. Bc7 {[%clk 00:09:52]}
{[%emt 00:10:37]} Rd7 {[%clk 00:15:37]} {[%emt 00:00:26]} 18. Bg3 {[%clk
00:10:00]} {[%emt 00:00:01]} Rfd8 {[%clk 00:13:29]} {[%emt 00:02:19]} 19. Bd1
{[%clk 00:05:55]} {[%emt 00:04:15]} Kg7 {[%clk 00:11:24]} {[%emt 00:02:14]}
1/2-1/2